bitfinex-derivatives/quotes_ETHF0:USTF0_20250929
["timestamp","ask_amount","ask_price","bid_price","bid_amount"]
[1759175941485,0.7233,4192.9,4192.8,1.19202]
[1759175941486,41.4682,4192.9,4192.8,1.19202]
[1759175942390,1.15233,4192.7,4192.6,0.00275163]
[1759175942590,1.49037069,4192.7,4192.6,0.00275163]
[1759175942793,0.97647069,4192.7,4192.6,0.76575163]
[1759175943087,0.245,4192.7,4192.6,0.76575163]
[1759175943289,0.4544,4192.7,4192.6,0.76575163]
[1759175943489,0.6682,4192.7,4192.6,0.76575163]
[1759175943883,5.9683,4192.7,4192.6,0.00275163]
[1759175944088,6.49052013,4192.7,4192.6,0.00275163]
[1759175944687,1.24552013,4192.7,4192.6,0.56005163]
[1759175944992,1.49052013,4192.7,4192.6,0.33695163]
[1759175945188,1.24552013,4192.7,4192.6,0.56005163]
[1759175945496,1.19042013,4192.7,4192.6,0.76575163]
[1759175945697,0.94542013,4192.7,4192.6,0.76575163]
[1759175945897,0.52222013,4192.7,4192.6,0.76575163]
[1759175946189,0.245,4192.7,4192.6,0.76575163]
[1759175946984,0.7233,4193.5,4193.4,0.76316]
[1759175947186,1.49061598,4193.5,4193.4,0.76316]
[1759175947394,0.7233,4193.1,4193.0,1.1146]
[1759175947584,40.8,4193.5,4193.0,0.8913]
[1759175947789,41.0094,4193.5,4193.4,1.19196]
[1759175947988,41.2544,4193.5,4193.4,1.19196]
[1759175948393,0.2094,4193.5,4193.4,1.19196]
[1759175948593,0.4232,4193.9,4193.8,0.98622]
[1759175948797,0.5372,4193.9,4193.8,0.98622]
[1759175948999,41.74532999,4193.9,4193.8,1.19192]
[1759175949186,41.2544,4193.9,4193.8,1.19192]
[1759175949385,41.4682,4193.9,4193.8,1.19192]
[1759175949995,0.6682,4193.9,4193.8,1.19192]
[1759175951500,0.9683,4193.9,4193.8,1.19192]
[1759175952594,0.6682,4193.9,4193.8,1.19192]
[1759175953193,0.42574417,4194.7,4194.6,0.2231]
[1759175953393,0.42574417,4194.7,4194.1,1.19189]
[1759175953394,0.2094,4194.2,4194.1,1.19189]
[1759175953592,0.245,4194.3,4194.1,1.19189]
[1759175953792,0.21194417,4194.7,4194.6,0.42884]
[1759175954101,0.66974417,4194.7,4194.6,1.19184]
[1759175954297,41.77104417,4194.7,4194.6,0.3342]
[1759175954501,0.4303,4194.5,4194.4,0.75806]
[1759175954701,0.7316,4194.5,4194.4,0.96776]
[1759175955299,0.7316,4193.9,4193.8,0.3292]
[1759175955497,0.7316,4193.8,4193.7,0.75812]
[1759175955705,0.7316,4193.8,4193.7,0.96782]
[1759175956200,0.4303,4193.8,4193.7,0.96782]
[1759175956500,0.4303,4193.8,4193.7,1.18372]
[1759175957198,0.7316,4193.8,4193.7,1.18372]
[1759175957392,0.42893,4193.7,4193.6,0.42893]
[1759175957700,0.4303,4193.2,4193.1,0.7548]
[1759175957897,0.4303,4193.2,4193.1,1.18379]
[1759175958101,0.4303,4193.2,4193.1,0.96789]
[1759175958102,0.7316,4193.2,4193.1,0.96789]
[1759175958301,0.2067,4192.9,4192.5,0.124]
[1759175958507,0.1268,4193.5,4192.7,0.3292]
[1759175958508,1.40562,4192.8,4192.7,0.3292]
[1759175958702,0.7316,4192.7,4192.6,0.43178163]
[1759175959003,0.7316,4192.7,4192.6,0.97068163]
[1759175959209,0.6753,4192.7,4192.6,1.18658163]
[1759175959599,0.9766,4192.7,4192.6,0.97068163]
[1759175960402,0.6753,4192.7,4192.6,1.18658163]
[1759175960707,0.6753,4192.7,4192.6,0.75755163]
[1759175961097,0.4303,4192.7,4192.6,0.75755163]
[1759175961297,0.6753,4192.7,4192.6,0.75755163]
[1759175961697,0.4303,4192.7,4192.6,0.75755163]
[1759175961909,0.6753,4192.7,4192.6,0.75755163]
[1759175963006,0.9766,4192.7,4192.6,0.54165163]
[1759175963302,0.9766,4192.7,4191.5,0.124]
[1759175963303,0.4303,4191.9,4191.5,0.124]
[1759175963506,0.76540391,4191.8,4191.3,0.42917]
[1759175963800,41.2303,4191.4,4191.3,0.5389]
[1759175964006,41.2303,4191.4,4191.3,1.18397]
[1759175964202,41.2303,4191.4,4191.3,0.96807]
[1759175964402,41.23301864,4191.4,4191.3,0.97029301]
[1759175964802,41.56741864,4191.4,4191.3,0.07029301]
[1759175964996,41.56741864,4191.4,4191.3,0.49946301]
[1759175965201,41.56741864,4191.4,4191.3,0.07029301]
[1759175965402,1.18622,4190.9,4190.8,0.42922]
[1759175965605,0.757,4190.8,4190.7,0.42923]
[1759175966306,0.757,4190.8,4190.0,0.124]
[1759175966307,0.757,4189.7,4189.6,0.86185]
[1759175966511,0.757,4189.7,4189.6,0.86459481]
[1759175966704,0.4577,4189.9,4189.8,1.19583]
[1759175967208,41.2577,4189.9,4189.8,1.19583]
[1759175967402,41.802,4189.9,4189.8,0.65153]
[1759175968210,41.802,4189.9,4189.8,0.42933]
[1759175968413,0.4226,4189.8,4189.7,0.2222]
[1759175968609,0.4226,4189.8,4189.6,0.43208481]
[1759175968811,0.8854,4189.5,4189.4,0.42936]
[1759175969204,41.6854,4189.5,4189.4,0.42936]
[1759175969512,0.757,4189.3,4189.2,0.42938]
[1759175969707,0.757,4189.3,4189.2,0.65158]
[1759175969915,0.2099,4190.0,4189.9,0.65151]
[1759175970105,41.437,4190.0,4189.9,0.2222]
[1759175970303,0.4226,4189.3,4189.2,0.43218296]
[1759175970606,1.002,4189.3,4189.2,0.43218296]
[1759175971206,41.802,4189.3,4189.2,0.43218296]
[1759175971900,41.802,4189.3,4189.2,0.00279296]
[1759175973710,41.557,4189.3,4189.2,0.00279296]
[1759175974009,41.802,4189.3,4189.2,0.00279296]
[1759175974214,41.557,4189.3,4189.2,0.00279296]
[1759175974410,41.802,4189.3,4189.2,0.00279296]
[1759175975506,41.557,4189.3,4189.2,0.00279296]
[1759175975705,41.557,4189.3,4189.2,0.22499296]
[1759175975907,40.8,4189.3,4189.2,0.76929296]
[1759175976210,41.557,4189.3,4189.2,0.00279296]
[1759175978715,41.802,4189.3,4189.2,0.00279296]
[1759175979506,42.23138,4189.3,4189.2,0.00279296]
[1759175980605,0.4226,4188.6,4188.5,0.65166]
[1759175980813,0.4577,4188.6,4188.5,1.19596]
[1759175981313,41.802,4188.6,4188.5,0.2222]
[1759175981622,41.802,4188.6,4188.5,0.65374266]
[1759175982120,41.2226,4188.6,4188.5,1.19804266]
[1759175982316,41.4676,4188.6,4188.5,1.19804266]
[1759175982522,41.802,4188.6,4188.5,1.19804266]
[1759175983523,41.802,4188.6,4188.5,0.43154266]
[1759175983915,41.802,4188.6,4188.5,0.00208266]
[1759175984116,41.802,4188.6,4188.5,0.22428266]
[1759175984512,40.8,4188.6,4188.5,0.90308266]
[1759175984715,41.045,4188.6,4188.5,0.90308266]
[1759175984921,40.8,4188.6,4188.5,5.90308266]
[1759175985119,41.3471,4188.6,4188.5,5.76858266]
[1759175985319,41.557,4188.6,4188.5,0.43458266]
[1759175985518,40.8,4188.6,4188.5,5.90308266]
[1759175986420,41.0127,4188.6,4188.5,5.90308266]
[1759175986619,40.8,4188.6,4188.5,5.90308266]
[1759175987924,40.8,4188.6,4188.5,6.33254266]
[1759175988319,41.3471,4188.6,4188.5,6.19804266]
[1759175988624,41.557,4188.6,4188.5,0.86404266]
[1759175989116,41.557,4188.6,4188.5,0.65374266]
[1759175989518,41.557,4188.6,4188.5,1.19804266]
[1759175990522,0.4226,4189.3,4189.2,0.2222]
[1759175990717,1.002,4189.3,4189.2,0.42939]
[1759175991130,0.757,4189.3,4189.2,0.65159]
[1759175991329,1.002,4189.3,4189.2,0.65159]
[1759175991520,41.557,4189.3,4189.2,0.98559]
[1759175991826,41.802,4189.3,4189.2,0.42939]
[1759175993423,42.32256081,4189.3,4189.2,0.42939]
[1759175994827,42.32256081,4189.3,4189.2,0.65109]
[1759175995127,42.07756081,4189.3,4189.2,0.42939]
[1759175995329,41.74316081,4189.3,4189.2,1.18919]
[1759175995629,1.25376081,4189.3,4189.2,0.65109]
[1759175995928,41.32056081,4189.3,4189.2,6.18919]
[1759175996327,42.05411624,4189.3,4189.2,0.42939]
[1759175996634,42.29911526,4189.3,4189.2,0.42939]
[1759175996829,42.29911526,4189.3,4189.2,0.65109]
[1759175998123,42.29911526,4189.3,4189.2,1.18919]
[1759175998333,41.32187052,4189.3,4189.2,1.18919]
[1759175998927,41.53427052,4189.3,4189.2,1.18919]
[1759175999233,42.05427052,4189.3,4189.2,1.18919]
[1759175999428,42.05427052,4189.3,4189.2,0.86259]
[1759175999629,42.05427052,4189.3,4189.2,0.65109]
[1759175999928,41.53427052,4189.3,4189.2,6.18919]
[1759176000134,41.53427052,4189.3,4189.2,0.86259]
[1759176000135,42.05427052,4189.3,4189.2,0.86259]
[1759176000331,42.05427052,4189.3,4189.2,1.18919]
[1759176000531,41.32187052,4189.3,4189.2,1.18919]
[1759176001028,42.05427052,4189.3,4189.2,1.18919]
[1759176001233,42.05427052,4189.3,4189.2,0.42939]
[1759176001528,0.3106,4189.2,4188.5,0.00208266]
[1759176001730,0.7324,4188.6,4188.5,0.43154266]
[1759176002036,1.49927052,4188.6,4188.5,0.43154266]
[1759176002236,1.49927052,4188.6,4188.5,0.00208266]
[1759176002428,0.1269,4188.0,4187.9,0.0238786]
[1759176002627,0.2124,4186.9,4186.8,0.3266]
[1759176002925,0.7324,4186.9,4186.8,0.97793]
[1759176003124,0.523,4187.8,4187.7,0.2217]
[1759176003335,1.49930701,4187.8,4187.7,0.7598]
[1759176003635,0.00198871,4187.8,4187.7,5.76285638]
[1759176003937,0.7324,4188.7,4188.2,1.07371]
[1759176004131,1.25390621,4188.6,4188.5,0.42946]
[1759176004328,42.05390621,4188.6,4188.3,0.42947]
[1759176004534,42.05390621,4188.6,4187.8,0.5716]
[1759176004535,0.7324,4188.4,4188.2,0.42948]
[1759176004727,1.49890199,4188.3,4188.2,0.42948]
[1759176004928,1.50197677,4188.3,4188.2,0.42948]
[1759176005931,1.25697677,4188.3,4188.2,0.86268]
[1759176006137,1.25697677,4188.3,4188.2,0.42948]
[1759176006532,0.73697677,4188.3,4188.2,1.18928]
[1759176006824,4.78e-06,4188.3,4188.2,6.18928]
[1759176007242,0.3106,4189.0,4188.9,0.42942]
[1759176007444,0.8593,4189.0,4188.9,0.42942]
[1759176007732,1.38057704,4189.0,4188.9,0.42942]
[1759176007932,1.62557704,4189.0,4188.9,0.42942]
[1759176008330,1.62839281,4189.0,4188.9,0.42942]
[1759176008533,0.3106,4188.9,4188.2,0.3266]
[1759176008736,0.7324,4188.8,4188.7,0.65114]
[1759176010046,0.00281577,4189.0,4188.9,1.18922]
[1759176011454,40.8,4190.4,4190.0,1.07327]
[1759176011754,0.1269,4192.0,4190.6,0.3266]
[1759176011755,0.3106,4190.9,4190.6,0.3266]
[1759176011947,0.3106,4190.9,4190.8,0.75582]
[1759176012144,0.3106,4190.9,4190.8,0.42922]
[1759176012355,0.3106,4190.9,4190.3,0.3266]
[1759176012656,0.3106,4190.9,4190.8,0.00249897]
[1759176012657,0.74286428,4190.9,4190.8,0.00249897]
[1759176012858,5.52356153,4190.9,4189.5,0.4575]
[1759176013064,0.3106,4189.9,4189.4,0.42936]
[1759176013263,0.3106,4189.9,4188.5,1.20453]
[1759176013264,0.1269,4189.5,4188.6,0.3266]
[1759176013463,0.3106,4189.4,4188.6,0.3266]
[1759176013765,0.1269,4189.5,4188.7,0.42943]
[1759176013766,0.1269,4189.0,4188.7,0.42943]
[1759176013968,0.3106,4188.9,4188.8,0.42942]
[1759176014857,0.1269,4189.5,4188.8,0.42942]
[1759176014858,0.1269,4189.5,4189.4,0.42937]
[1759176015057,0.77261806,4189.5,4189.4,0.42937]
[1759176015258,0.77261806,4189.5,4189.0,0.3266]
[1759176015465,0.3143,4189.4,4189.3,0.42937]
[1759176016264,0.2519,4189.5,4188.7,1.40300372]
[1759176016465,0.3143,4189.4,4188.8,1.07358]
[1759176016665,0.3143,4189.4,4189.3,0.42938]
[1759176016966,0.3143,4189.4,4189.3,0.42937]
[1759176017567,0.3143,4189.4,4189.3,0.75697]
[1759176017861,0.3143,4189.4,4188.7,0.00181372]
[1759176018057,0.42938,4189.3,4189.0,0.4294]
[1759176018257,0.3143,4189.2,4189.0,0.4294]
[1759176018465,41.1143,4189.1,4189.0,0.42941]
[1759176018658,0.3143,4188.9,4188.7,0.43124372]
[1759176019067,0.4469,4189.0,4188.9,0.42942]
[1759176019966,41.1143,4189.1,4189.0,0.3276]
[1759176020263,0.4469,4189.0,4188.7,0.00181372]
[1759176020563,0.3143,4188.9,4188.7,0.43125372]
[1759176020768,0.3143,4188.9,4188.7,0.00181372]
[1759176020963,0.3143,4188.9,4188.8,0.42942]
[1759176021166,41.1143,4189.1,4189.0,0.75701]
[1759176021367,41.1143,4189.1,4189.0,0.42941]
[1759176021868,41.1143,4189.1,4189.0,0.75701]
[1759176022465,41.1143,4189.1,4189.0,0.42941]
[1759176022661,41.1143,4189.1,4188.7,1.07541372]
[1759176022662,0.3143,4188.9,4188.8,0.42942]
[1759176022865,0.3143,4188.9,4188.7,0.00181372]
[1759176022866,0.74372,4188.9,4188.7,0.00181372]
[1759176023059,0.42942,4188.9,4188.7,0.43125372]
[1759176023256,0.3143,4188.8,4188.7,0.43125372]
[1759176023574,0.3143,4188.8,4188.7,0.00181372]
[1759176023968,5.3143,4188.8,4188.7,0.00181372]
[1759176024271,5.74373,4188.8,4188.7,0.00181372]
[1759176024670,0.3143,4188.8,4188.7,0.00181372]
[1759176024866,0.5603,4188.8,4188.7,0.00181372]
[1759176025370,0.5603,4188.8,4188.7,0.33691372]
[1759176025968,40.8,4189.1,4189.0,0.76451]
[1759176026169,0.1326,4189.5,4189.4,0.42937]
[1759176026371,0.3363,4189.4,4189.0,0.3351]
[1759176026567,0.3363,4189.3,4189.2,0.42938]
[1759176027161,0.3363,4188.9,4188.7,0.00181372]
[1759176027470,0.3363,4188.9,4188.8,0.42943]
[1759176027662,0.1255,4189.0,4188.7,0.43125372]
[1759176027857,0.42942,4188.9,4188.8,0.42943]
[1759176028056,0.3363,4188.9,4188.8,0.42943]
[1759176028264,0.76573,4188.8,4188.7,0.00181372]
[1759176028458,0.3363,4188.8,4188.7,0.43125372]
[1759176028861,0.3363,4188.8,4188.7,0.76635372]
[1759176029573,0.3363,4189.5,4189.1,0.3351]
[1759176029866,0.42934,4189.7,4189.6,0.42935]
[1759176030170,0.76564,4189.7,4189.6,0.42935]
[1759176030665,0.3363,4189.7,4189.6,0.42935]
[1759176030871,0.3363,4189.7,4189.6,0.76445]
[1759176031373,0.3363,4189.7,4189.6,0.42935]
[1759176032070,0.3363,4189.7,4189.3,0.42938]
[1759176032071,0.3363,4189.4,4189.3,0.42938]
[1759176032266,0.76567,4189.4,4189.3,0.42938]
[1759176032658,0.3363,4189.4,4189.3,0.42938]
[1759176034371,1.01162,4189.9,4189.8,0.42933]
[1759176034676,1.54004818,4189.9,4189.8,0.42933]
[1759176035864,0.52842818,4189.9,4189.8,0.76443]
[1759176036082,0.42928,4190.3,4189.7,1.07333]
[1759176036370,0.52847975,4190.2,4189.8,1.07332]
[1759176036674,0.3363,4190.3,4190.2,0.42929]
[1759176037466,0.3363,4190.3,4190.2,0.76439]
[1759176037774,0.246,4190.4,4190.3,0.76438]
[1759176038274,0.5823,4190.4,4190.3,0.76438]
[1759176039070,0.00304428,4190.9,4190.8,0.42922]
[1759176039268,0.00304428,4190.9,4190.8,0.76432]
[1759176042066,0.33934428,4190.9,4190.8,0.76432]
[1759176042462,0.00304428,4190.9,4190.8,0.76432]
[1759176043375,0.33934428,4190.9,4190.8,0.76432]
[1759176043976,0.55114428,4190.9,4190.8,1.20812]
[1759176044274,0.21484428,4190.9,4190.8,1.20812]
[1759176044683,0.00304428,4190.9,4190.8,1.20812]
[1759176045576,40.8,4191.6,4190.8,1.20812]
[1759176045577,0.5481,4192.0,4191.9,1.20801]
[1759176046078,0.21,4191.5,4191.4,0.42916]
[1759176046285,0.7581,4191.5,4191.4,0.64936]
[1759176046479,0.88626242,4191.5,4191.4,0.00248125]
[1759176046778,0.88626242,4191.5,4191.4,0.43164125]
[1759176047481,0.88626242,4191.5,4191.4,0.65184125]
[1759176047670,0.00266242,4191.5,4191.4,1.21054125]
[1759176049286,0.55076242,4191.5,4191.4,1.21054125]
[1759176050277,0.00266242,4191.5,4191.4,1.21054125]
[1759176051583,0.00266242,4191.5,4191.4,1.45554125]
[1759176052875,0.00266242,4191.5,4191.4,1.21054125]
[1759176053079,0.00266242,4191.5,4191.4,1.45554125]
[1759176055788,0.00266242,4191.5,4191.4,6.45554125]
[1759176057089,0.2124,4192.5,4192.4,1.17976]
[1759176057593,0.5236,4192.5,4192.4,1.17976]
[1759176057989,0.52658584,4192.5,4192.4,1.17976]
[1759176058688,0.74588584,4192.5,4192.4,1.17976]
[1759176059191,0.87838584,4192.5,4192.4,0.84936]
[1759176060079,0.00298584,4192.5,4192.4,1.42476]
[1759176060478,0.87838584,4192.5,4192.4,0.2087]
[1759176060683,0.87838584,4192.5,4192.3,0.42907]
[1759176060684,0.7429,4192.4,4192.3,0.42907]
[1759176061284,0.7429,4192.4,4192.3,0.63777]
[1759176061985,0.7429,4192.4,4192.3,0.96817]
[1759176063186,0.7429,4192.4,4192.3,1.17977]
[1759176064197,0.7429,4192.4,4192.3,0.2087]
[1759176064493,0.8754,4192.0,4191.9,0.63781]
[1759176065090,0.2124,4191.5,4191.0,0.1329]
[1759176065392,0.8754,4191.5,4190.9,0.42921]
[1759176065592,0.4317,4190.7,4190.6,0.63794]
[1759176065893,0.7429,4190.7,4190.6,0.42924]
[1759176066089,0.4317,4190.7,4189.7,1.07332]
[1759176066297,0.7429,4190.6,4190.5,0.63795]
[1759176066594,0.7429,4190.6,4190.5,0.64013076]
[1759176066995,0.2124,4190.6,4190.5,1.18213076]
[1759176067188,0.4437,4191.0,4190.6,1.17994]
[1759176067189,0.7429,4190.7,4190.6,1.17994]
[1759176068487,0.5236,4190.7,4190.6,1.17994]
[1759176068689,41.4561,4191.5,4190.6,1.07312]
[1759176068896,0.7429,4191.2,4191.1,0.63789]
[1759176070698,0.7429,4191.2,4191.1,1.17989]
[1759176071495,1.26471174,4191.2,4191.1,0.84949]
[1759176071692,0.7429,4191.2,4191.1,0.84949]
[1759176072396,0.4437,4191.5,4191.4,0.42916]
[1759176072597,0.5236,4191.5,4191.4,1.17986]
[1759176072791,1.04537182,4191.5,4191.4,1.17986]
[1759176073494,41.5429,4191.9,4191.8,1.17982]
[1759176073687,1.69370457,4191.9,4191.8,0.4203]
[1759176073890,1.26459457,4191.9,4191.8,0.63782]
[1759176074596,0.7429,4191.9,4191.8,1.17232]
[1759176074902,0.2124,4191.9,4191.8,1.17232]
[1759176075495,0.5436,4192.2,4192.1,1.17619]
[1759176075697,1.06532008,4192.2,4192.1,1.17619]
[1759176075898,0.2154,4192.2,4192.1,1.17619]
[1759176076199,0.89478584,4192.5,4192.4,1.17616]
[1759176076396,1.41651168,4192.5,4192.4,1.17616]
[1759176077293,0.42909,4192.1,4192.0,0.5276]
[1759176077499,0.5439,4191.9,4191.8,0.64172]
[1759176077699,0.7593,4191.9,4191.8,0.64172]
[1759176077897,0.7593,4191.9,4191.8,0.42912]
[1759176078199,1.18841,4191.9,4191.8,0.42912]
[1759176078393,0.7593,4191.9,4191.8,1.17622]
[1759176078593,0.7886,4192.2,4192.1,0.4321]
[1759176078793,1.0043,4192.2,4192.1,0.7471]
[1759176078999,0.4604,4192.2,4192.1,1.17619]
[1759176079493,1.0043,4192.2,4192.1,1.17619]
[1759176079803,1.0043,4192.2,4192.1,0.86119]
[1759176080395,5.5732,4192.2,4190.5,2.27835076]
[1759176080698,5.5732,4192.2,4191.6,0.42914]
[1759176080699,0.7593,4191.7,4191.6,0.42914]
[1759176081288,0.7593,4191.7,4191.4,0.42915]
[1759176081486,0.7593,4191.2,4190.7,0.315]
[1759176081692,0.1317,4191.5,4190.7,0.42923]
[1759176081693,1.18853,4190.8,4190.7,0.42923]
[1759176081997,0.7593,4190.8,4190.7,0.64183]
[1759176082399,0.7593,4190.8,4190.7,0.42923]
[1759176082796,0.7593,4190.6,4190.5,0.00218076]
[1759176082998,1.52594588,4190.6,4190.5,0.00218076]
[1759176084198,1.0043,4190.6,4190.5,0.00218076]
[1759176086996,1.0043,4190.6,4190.5,0.22298076]
[1759176088904,0.7593,4190.6,4190.5,0.56028076]
[1759176089104,1.0043,4190.6,4190.5,0.78148076]
[1759176089304,1.43354,4190.6,4190.5,0.44418076]
[1759176089501,1.43354,4190.6,4190.5,0.65224076]
[1759176090205,1.18854,4190.6,4190.5,0.65224076]
[1759176090498,1.43354,4190.6,4190.5,0.98954076]
[1759176090705,0.7593,4190.6,4190.5,1.21074076]
[1759176091296,1.18854,4190.6,4190.5,1.21074076]
[1759176091701,0.7593,4190.6,4190.5,1.21074076]
[1759176093003,0.42919,4191.2,4191.1,0.42919]
[1759176093203,1.44889,4191.2,4191.1,0.2208]
[1759176093404,1.44889,4191.2,4191.1,0.64999]
[1759176093707,1.44889,4191.2,4191.1,0.42919]
[1759176093909,1.44889,4191.2,4191.1,0.64999]
[1759176095305,1.44889,4191.2,4191.1,0.2208]
[1759176095501,1.32702,4191.0,4190.9,0.2208]
[1759176095706,1.32702,4191.0,4190.9,0.65001]
[1759176096607,1.20394,4190.6,4190.5,0.43144076]
[1759176097306,1.20394,4190.6,4190.5,0.00218076]
[1759176098704,0.2226,4189.3,4189.2,0.87139]
[1759176098909,0.7747,4189.3,4189.2,1.20869]
[1759176099511,0.7747,4189.3,4189.2,0.87139]
[1759176099708,0.77723373,4189.3,4189.2,0.44403346]
[1759176100010,0.77723373,4189.3,4189.2,0.00203346]
[1759176102017,1.02223373,4189.3,4189.2,0.00203346]
[1759176104719,0.2226,4188.1,4188.0,1.33731]
[1759176104924,0.2226,4188.1,4188.0,0.42951]
[1759176104925,0.7747,4188.1,4188.0,0.42951]
[1759176105624,0.7747,4188.1,4188.0,1.21153396]
[1759176107617,0.7747,4188.1,4188.0,0.00272396]
[1759176107618,1.2042,4188.1,4188.0,0.00272396]
[1759176108721,42.0042,4188.1,4188.0,0.00272396]
[1759176108922,47.0042,4188.1,4188.0,0.00272396]
[1759176109919,47.52462599,4188.1,4188.0,0.00272396]
[1759176110126,0.7747,4186.7,4186.6,0.65045]
[1759176111223,0.7747,4186.7,4186.6,0.65262196]
[1759176111422,0.7747,4186.7,4186.6,0.00217196]
[1759176112618,0.7747,4186.7,4186.6,0.22297196]
[1759176113018,0.7747,4186.7,4186.6,0.78147196]
[1759176113816,0.7747,4186.7,4186.6,0.44417196]
[1759176114019,0.7747,4186.7,4186.6,0.22297196]
[1759176114629,0.7747,4186.7,4186.6,0.00217196]
[1759176116327,0.7747,4186.7,4185.4,0.3296]
[1759176116328,0.8949,4186.0,4185.9,0.42972]
[1759176116916,0.8949,4186.0,4185.9,0.84642]
[1759176117120,0.2216,4186.0,4185.9,1.17602]
[1759176117318,0.77035656,4186.0,4185.9,1.17778412]
[1759176117922,0.22385656,4186.0,4185.9,1.17778412]
[1759176118326,0.55165656,4186.0,4185.9,1.17778412]
[1759176118831,0.89715656,4186.0,4185.9,0.84818412]
[1759176119033,0.89715656,4186.0,4185.9,1.17778412]
[1759176119332,0.55165656,4186.0,4185.9,1.17778412]
[1759176119533,0.77035656,4186.0,4185.9,1.17778412]
[1759176120624,0.89715656,4186.0,4185.9,0.84818412]
[1759176121023,0.77035656,4186.0,4185.9,1.17778412]
[1759176121823,0.89715656,4186.0,4185.9,0.84818412]
[1759176123036,0.77035656,4186.0,4185.9,1.17778412]
[1759176123233,1.01535656,4186.0,4185.9,1.17778412]
[1759176125031,0.77035656,4186.0,4185.9,1.17778412]
[1759176125231,1.01535656,4186.0,4185.9,1.17778412]
[1759176125534,0.00225656,4186.0,4185.9,1.17778412]
[1759176125743,0.3278,4186.9,4186.8,0.42963]
[1759176125935,0.7681,4186.9,4186.8,1.17593]
[1759176126438,1.0131,4186.9,4186.8,1.17593]
[1759176126831,1.0157323,4186.9,4186.8,1.17593]
[1759176127233,1.4453523,4186.9,4186.8,0.42963]
[1759176127539,0.7707323,4186.9,4186.8,0.63453]
[1759176127836,1.0157323,4186.9,4186.8,0.63453]
[1759176128033,0.42965,4186.7,4186.5,0.3296]
[1759176128341,0.8949,4186.5,4186.4,0.42967]
[1759176128639,1.1399,4186.5,4186.4,0.42967]
[1759176128840,1.1399,4186.5,4186.4,1.17597]
[1759176132342,1.66057635,4186.5,4186.4,1.17597]
[1759176132549,0.7681,4186.0,4185.9,1.17779412]
[1759176133942,0.7681,4186.0,4185.9,0.84819412]
[1759176134139,1.56962,4186.0,4185.9,0.00176412]
[1759176134346,2.09112914,4186.0,4185.9,0.00176412]
[1759176134742,0.42978,4185.4,4185.1,0.4298]
[1759176135045,0.7391,4185.2,4185.1,0.977]
[1759176135349,1.26087471,4185.2,4185.1,0.977]
[1759176135753,1.26087471,4185.2,4185.1,0.97963766]
[1759176135939,0.245,4185.5,4185.4,0.42978]
[1759176136144,1.505875,4185.5,4185.4,1.18658]
[1759176136751,1.632275,4185.5,4185.4,1.18658]
[1759176137453,0.7391,4185.4,4185.3,0.42979]
[1759176137648,0.4256,4185.2,4185.1,0.00263766]
[1759176137948,1.260875,4185.2,4185.1,1.18924766]
[1759176140247,1.690675,4185.2,4185.1,0.00263766]
[1759176141149,1.690675,4185.2,4185.1,0.43244766]
[1759176141552,1.690675,4185.2,4185.1,0.00263766]
[1759176142154,1.69111538,4185.2,4185.1,0.00263766]
[1759176142544,1.69111538,4185.2,4184.4,0.3218]
[1759176142545,42.49111538,4185.2,4184.4,0.3218]
[1759176142746,0.8655,4184.5,4184.4,0.5472]
[1759176142953,1.63271538,4184.5,4184.4,0.5472]
[1759176143252,1.63271538,4184.5,4183.9,0.3218]
[1759176143454,0.7391,4184.0,4183.9,0.7568]
[1759176143645,0.8655,4184.0,4183.9,1.18879194]
[1759176143841,1.63267236,4184.0,4183.9,0.43199194]
[1759176145149,1.63267236,4184.0,4183.9,0.00206194]
[1759176145350,0.4233,4183.2,4183.1,0.5372]
[1759176145553,0.7606,4183.2,4183.1,1.17411]
[1759176145851,0.3373,4183.8,4183.7,0.42995]
[1759176146051,0.794,4183.8,4183.7,1.17405]
[1759176146253,1.31569195,4183.8,4183.7,1.17405]
[1759176146553,42.11778717,4183.8,4183.7,1.17644073]
[1759176146852,42.32938717,4183.8,4183.7,1.17644073]
[1759176147150,41.53548717,4183.8,4183.7,1.17644073]
[1759176147358,0.1264,4185.0,4183.7,5.74649073]
[1759176147655,0.887,4185.0,4184.9,0.85163]
[1759176147844,42.45283875,4185.0,4184.9,0.85163]
[1759176148455,42.455708,4185.0,4184.9,0.85163]
[1759176148848,42.455708,4185.0,4184.9,0.64473]
[1759176149647,42.885538,4185.0,4184.2,1.39706]
[1759176149855,0.7606,4184.3,4184.2,1.174]
[1759176150251,0.549,4184.3,4184.2,1.174]
[1759176152249,0.7606,4184.3,4184.2,1.174]
[1759176152455,0.7606,4184.3,4184.2,0.4299]
[1759176152656,0.7606,4184.3,4184.2,0.6448]
[1759176154152,0.7606,4184.3,4184.2,0.4299]
[1759176154954,1.0056,4184.3,4184.2,1.174]
[1759176156062,0.7606,4184.7,4184.6,0.7441]
[1759176156358,1.0056,4184.7,4184.6,0.42986]
[1759176156549,1.0056,4184.7,4184.6,0.64476]
[1759176157053,0.85316,4184.6,4184.5,0.42986]
[1759176157254,1.19046,4184.6,4184.5,0.42986]
[1759176158565,0.7606,4184.6,4184.5,0.42986]
[1759176159271,0.7606,4184.6,4184.5,0.42906]
[1759176159862,1.19046,4184.6,4184.5,0.42906]
[1759176160065,1.31388,4184.5,4184.4,0.42988]
[1759176160361,1.19049,4184.3,4184.2,0.42989]
[1759176160552,0.7606,4184.8,4184.7,0.64475]
[1759176160750,0.52149342,4184.8,4184.7,1.17395]
[1759176160954,0.21456925,4185.0,4184.9,1.17393]
[1759176161154,0.79686925,4185.0,4184.9,1.17393]
[1759176161361,1.00846925,4185.0,4184.9,1.17393]
[1759176162162,0.24786925,4185.0,4184.9,1.17393]
[1759176162549,0.45956925,4185.0,4184.9,1.17393]
[1759176162763,0.79686925,4185.0,4184.9,1.17393]
[1759176163365,1.00846925,4185.0,4184.9,1.17393]